[Event "Titled Tuesday Blitz April 11 Late 2023"]
[White "Ezat, Mohamed"]
[Black "Duda, Jan-Krzysztof"]
[WhiteFideId "10600906"]
[BlackFideId "1170546"]
[WhiteElo "2386"]
[BlackElo "2790"]
[Result "1/2-1/2"]
[Round "02"]
[TimeControl "180+2"]
[Date "2023.04.11"]
[WhiteClock "0:00:10"]
[BlackClock "0:01:16"]

1. d4 {[%clk 0:02:58]}  d6 {[%clk 0:03:00]} 2. c4 {[%clk 0:02:57]}  Nf6 {[%clk 0:03:00]} 3. Nc3 {[%clk 0:02:57]}  e5 {[%clk 0:03:00]} 4. Nf3 {[%clk 0:02:57]}  Nbd7 {[%clk 0:02:59]} 5. Bg5 {[%clk 0:02:55]}  Be7 {[%clk 0:02:57]} 6. e3 {[%clk 0:02:54]}  h6 {[%clk 0:02:57]} 7. Bh4 {[%clk 0:02:54]}  O-O {[%clk 0:02:58]} 8. Qc2 {[%clk 0:02:54]}  c6 {[%clk 0:02:57]} 9. O-O-O {[%clk 0:02:53]}  Qc7 {[%clk 0:02:54]} 10. Bd3 {[%clk 0:02:52]}  Re8 {[%clk 0:02:54]} 11. Kb1 {[%clk 0:02:51]}  a6 {[%clk 0:02:54]} 12. h3 {[%clk 0:02:37]}  Ra7 {[%clk 0:02:43]} 13. g4 {[%clk 0:02:36]}  b5 {[%clk 0:02:44]} 14. g5 {[%clk 0:02:36]}  hxg5 {[%clk 0:02:42]} 15. Nxg5 {[%clk 0:02:35]}  bxc4 {[%clk 0:02:39]} 16. Bh7+ {[%clk 0:02:22]}  Kf8 {[%clk 0:02:39]} 17. Nxf7 {[%clk 0:02:22]}  Nxh7 {[%clk 0:02:06]} 18. Qxh7 {[%clk 0:02:18]}  Bxh4 {[%clk 0:02:04]} 19. Rhg1 {[%clk 0:00:57]}  Bf6 {[%clk 0:01:54]} 20. Rxg7 {[%clk 0:00:41]}  Bxg7 {[%clk 0:01:54]} 21. Rg1 {[%clk 0:00:41]}  Nb6 {[%clk 0:01:25]} 22. Qxg7+ {[%clk 0:00:20]}  Ke7 {[%clk 0:01:25]} 23. Nxd6+ {[%clk 0:00:13]}  Kxd6 {[%clk 0:01:23]} 24. Ne4+ {[%clk 0:00:11]}  Kd5 {[%clk 0:01:17]} 25. Nc3+ {[%clk 0:00:11]}  Kd6 {[%clk 0:01:17]} 26. Ne4+ {[%clk 0:00:10]}  Kd5 {[%clk 0:01:15]} 27. Nc3+ {[%clk 0:00:10]}  Kd6 {[%clk 0:01:16]} 1/2-1/2


[Site "https://www.chess.com"]

[Event "Titled Tuesday Blitz April 11 Late 2023"]
[White "Aldokhin, Ivan"]
[Black "Vachier-Lagrave, Maxime"]
[WhiteFideId "24115720"]
[BlackFideId "623539"]
[WhiteElo "2322"]
[BlackElo "2740"]
[Result "0-1"]
[Round "02"]
[TimeControl "180+2"]
[Date "2023.04.11"]
[WhiteClock "0:00:02"]
[BlackClock "0:01:01"]

1. e4 {[%clk 0:02:53]}  c5 {[%clk 0:02:58]} 2. Nf3 {[%clk 0:02:53]}  Nc6 {[%clk 0:02:58]} 3. d4 {[%clk 0:02:54]}  cxd4 {[%clk 0:02:57]} 4. Nxd4 {[%clk 0:02:55]}  Nf6 {[%clk 0:02:58]} 5. Nc3 {[%clk 0:02:54]}  e5 {[%clk 0:02:58]} 6. Ndb5 {[%clk 0:02:54]}  d6 {[%clk 0:02:58]} 7. Bg5 {[%clk 0:02:54]}  a6 {[%clk 0:02:59]} 8. Na3 {[%clk 0:02:54]}  b5 {[%clk 0:02:59]} 9. Nd5 {[%clk 0:02:53]}  Be7 {[%clk 0:02:59]} 10. Bxf6 {[%clk 0:02:54]}  Bxf6 {[%clk 0:03:00]} 11. c3 {[%clk 0:02:54]}  Bg5 {[%clk 0:02:58]} 12. Nc2 {[%clk 0:02:55]}  Rb8 {[%clk 0:02:58]} 13. Be2 {[%clk 0:02:48]}  O-O {[%clk 0:02:57]} 14. O-O {[%clk 0:02:48]}  a5 {[%clk 0:02:48]} 15. b4 {[%clk 0:02:21]}  axb4 {[%clk 0:02:45]} 16. cxb4 {[%clk 0:02:05]}  Bd7 {[%clk 0:02:45]} 17. Bg4 {[%clk 0:01:48]}  Be6 {[%clk 0:02:26]} 18. a4 {[%clk 0:01:31]}  bxa4 {[%clk 0:02:26]} 19. Rxa4 {[%clk 0:01:31]}  Qd7 {[%clk 0:02:25]} 20. Bf3 {[%clk 0:00:59]}  Rfc8 {[%clk 0:02:14]} 21. Ra6 {[%clk 0:00:53]}  Bd8 {[%clk 0:02:03]} 22. Qd3 {[%clk 0:00:43]}  Bxd5 {[%clk 0:01:54]} 23. Qxd5 {[%clk 0:00:43]}  Bb6 {[%clk 0:01:51]} 24. h3 {[%clk 0:00:30]}  Ne7 {[%clk 0:01:45]} 25. Qd3 {[%clk 0:00:26]}  Qc7 {[%clk 0:01:38]} 26. Na3 {[%clk 0:00:14]}  g6 {[%clk 0:01:21]} 27. Nb5 {[%clk 0:00:12]}  Qc4 {[%clk 0:01:19]} 28. Qxc4 {[%clk 0:00:10]}  Rxc4 {[%clk 0:01:20]} 29. Rb1 {[%clk 0:00:01]}  Bxf2+ {[%clk 0:01:12]} 30. Kxf2 {[%clk 0:00:02]}  Rxb5 {[%clk 0:01:11]} 31. Rxd6 {[%clk 0:00:03]}  Rbxb4 {[%clk 0:01:10]} 32. Rxb4 {[%clk 0:00:03]}  Rxb4 {[%clk 0:01:11]} 33. Rd7 {[%clk 0:00:03]}  Kf8 {[%clk 0:01:11]} 34. Rd8+ {[%clk 0:00:03]}  Kg7 {[%clk 0:01:11]} 35. Rd7 {[%clk 0:00:04]}  Nc6 {[%clk 0:01:11]} 36. Bg4 {[%clk 0:00:02]}  Nd4 {[%clk 0:01:10]} 37. Rd5 {[%clk 0:00:02]}  h5 {[%clk 0:01:09]} 38. Bd1 {[%clk 0:00:01]}  Rb5 {[%clk 0:01:08]} 39. Rd6 {[%clk 0:00:01]}  h4 {[%clk 0:01:07]} 40. Bf3 {[%clk 0:00:01]}  f6 {[%clk 0:01:05]} 41. Rd7+ {[%clk 0:00:01]}  Kh6 {[%clk 0:01:05]} 42. Rd8 {[%clk 0:00:02]}  Kg5 {[%clk 0:01:05]} 43. Rf8 {[%clk 0:00:02]}  Rb2+ {[%clk 0:01:05]} 44. Kf1 {[%clk 0:00:02]}  f5 {[%clk 0:01:03]} 45. Rh8 {[%clk 0:00:01]}  Nxf3 {[%clk 0:01:01]} 46. gxf3 {[%clk 0:00:01]}  Kf4 {[%clk 0:01:01]} 47. Rxh4+ {[%clk 0:00:01]}  Kxf3 {[%clk 0:01:02]} 48. Ke1 {[%clk 0:00:01]}  f4 {[%clk 0:01:02]} 49. Rg4 {[%clk 0:00:01]}  Ke3 {[%clk 0:01:02]} 50. Kd1 {[%clk 0:00:01]}  f3 {[%clk 0:01:02]} 51. Rxg6 {[%clk 0:00:01]}  f2 {[%clk 0:01:00]} 52. Rf6 {[%clk 0:00:01]}  Rb1+ {[%clk 0:01:00]} 53. Kc2 {[%clk 0:00:02]}  f1=Q {[%clk 0:01:01]} 0-1


[Site "https://www.chess.com"]

[Event "Titled Tuesday Blitz April 11 Late 2023"]
[White "Manukyan, Sargis A."]
[Black "Sarana, Alexey"]
[WhiteFideId "13303970"]
[BlackFideId "24133795"]
[WhiteElo "2187"]
[BlackElo "2714"]
[Result "1-0"]
[Round "02"]
[TimeControl "180+2"]
[Date "2023.04.11"]
[WhiteClock "0:00:42"]
[BlackClock "0:00:01"]

1. d4 {[%clk 0:03:00]}  Nf6 {[%clk 0:02:58]} 2. c4 {[%clk 0:03:00]}  e6 {[%clk 0:02:59]} 3. Nc3 {[%clk 0:03:01]}  d5 {[%clk 0:02:59]} 4. Bg5 {[%clk 0:02:54]}  c5 {[%clk 0:02:58]} 5. cxd5 {[%clk 0:02:53]}  cxd4 {[%clk 0:02:56]} 6. Qxd4 {[%clk 0:02:53]}  Nc6 {[%clk 0:02:32]} 7. Qa4 {[%clk 0:02:39]}  exd5 {[%clk 0:02:30]} 8. Rd1 {[%clk 0:02:39]}  Be6 {[%clk 0:02:26]} 9. e4 {[%clk 0:02:35]}  d4 {[%clk 0:02:23]} 10. e5 {[%clk 0:02:36]}  Qb6 {[%clk 0:02:12]} 11. exf6 {[%clk 0:02:20]}  dxc3 {[%clk 0:02:10]} 12. bxc3 {[%clk 0:02:12]}  Qc5 {[%clk 0:02:02]} 13. Bd2 {[%clk 0:02:00]}  gxf6 {[%clk 0:01:58]} 14. Nf3 {[%clk 0:02:00]}  Rg8 {[%clk 0:01:51]} 15. Bb5 {[%clk 0:01:48]}  Rxg2 {[%clk 0:01:46]} 16. Be3 {[%clk 0:01:47]}  Qxc3+ {[%clk 0:01:43]} 17. Ke2 {[%clk 0:01:30]}  Rg4 {[%clk 0:00:34]} 18. Nd4 {[%clk 0:01:23]}  Rc8 {[%clk 0:00:25]} 19. Rc1 {[%clk 0:01:14]}  Qa3 {[%clk 0:00:15]} 20. Rxc6 {[%clk 0:00:42]}  bxc6 {[%clk 0:00:09]} 21. Bxc6+ {[%clk 0:00:41]}  Kd8 {[%clk 0:00:04]} 22. Nxe6+ {[%clk 0:00:41]}  fxe6 {[%clk 0:00:04]} 23. Rd1+ {[%clk 0:00:41]}  Kc7 {[%clk 0:00:01]} 24. Rd7+ {[%clk 0:00:42]} 1-0


[Site "https://www.chess.com"]

[Event "Titled Tuesday Blitz April 11 Late 2023"]
[White "Hakobyan, Aram"]
[Black "Sieciechowicz, Marcin"]
[WhiteFideId "13306677"]
[BlackFideId "1130170"]
[WhiteElo "2584"]
[BlackElo "2302"]
[Result "1-0"]
[Round "02"]
[TimeControl "180+2"]
[Date "2023.04.11"]
[WhiteClock "0:00:16"]
[BlackClock "0:00:08"]

1. e4 {[%clk 0:03:00]}  c5 {[%clk 0:02:59]} 2. Nf3 {[%clk 0:03:00]}  d6 {[%clk 0:03:00]} 3. Bb5+ {[%clk 0:03:00]}  Nd7 {[%clk 0:02:58]} 4. g4 {[%clk 0:03:01]}  a6 {[%clk 0:02:56]} 5. Be2 {[%clk 0:03:01]}  g6 {[%clk 0:02:45]} 6. a4 {[%clk 0:02:58]}  Bg7 {[%clk 0:02:45]} 7. Nc3 {[%clk 0:02:57]}  h6 {[%clk 0:02:36]} 8. d4 {[%clk 0:02:51]}  cxd4 {[%clk 0:02:35]} 9. Nxd4 {[%clk 0:02:52]}  Ngf6 {[%clk 0:02:36]} 10. Be3 {[%clk 0:02:49]}  Nc5 {[%clk 0:02:36]} 11. f3 {[%clk 0:02:49]}  Bd7 {[%clk 0:02:35]} 12. Qd2 {[%clk 0:02:44]}  Rc8 {[%clk 0:02:29]} 13. h4 {[%clk 0:02:41]}  Ne6 {[%clk 0:02:15]} 14. Nb3 {[%clk 0:02:33]}  Bc6 {[%clk 0:02:11]} 15. Rd1 {[%clk 0:02:25]}  Nd7 {[%clk 0:02:06]} 16. a5 {[%clk 0:02:17]}  Qc7 {[%clk 0:01:58]} 17. Nd5 {[%clk 0:02:00]}  Bxd5 {[%clk 0:01:55]} 18. exd5 {[%clk 0:02:01]}  Nec5 {[%clk 0:01:53]} 19. Nd4 {[%clk 0:02:01]}  Ne5 {[%clk 0:01:45]} 20. h5 {[%clk 0:01:52]}  g5 {[%clk 0:01:28]} 21. Nf5 {[%clk 0:01:48]}  Bf6 {[%clk 0:01:25]} 22. O-O {[%clk 0:01:36]}  Na4 {[%clk 0:01:18]} 23. c4 {[%clk 0:01:31]}  Nxb2 {[%clk 0:01:05]} 24. Rc1 {[%clk 0:01:31]}  Na4 {[%clk 0:00:56]} 25. f4 {[%clk 0:01:21]}  gxf4 {[%clk 0:00:49]} 26. Bxf4 {[%clk 0:01:22]}  Nc5 {[%clk 0:00:43]} 27. Qe3 {[%clk 0:01:17]}  Qxa5 {[%clk 0:00:35]} 28. Bxh6 {[%clk 0:01:17]}  Rg8 {[%clk 0:00:31]} 29. Nxd6+ {[%clk 0:01:16]}  Kd7 {[%clk 0:00:20]} 30. Nxc8 {[%clk 0:01:15]}  Kxc8 {[%clk 0:00:18]} 31. g5 {[%clk 0:01:11]}  Bxg5 {[%clk 0:00:11]} 32. Bxg5 {[%clk 0:01:09]}  f6 {[%clk 0:00:12]} 33. Rf5 {[%clk 0:01:09]}  Ncd7 {[%clk 0:00:12]} 34. h6 {[%clk 0:01:06]}  Qa2 {[%clk 0:00:09]} 35. c5 {[%clk 0:00:58]}  Qb2 {[%clk 0:00:08]} 36. c6 {[%clk 0:00:56]}  bxc6 {[%clk 0:00:08]} 37. dxc6 {[%clk 0:00:57]}  Nf8 {[%clk 0:00:08]} 38. Bxa6+ {[%clk 0:00:49]}  Kc7 {[%clk 0:00:08]} 39. Qa7+ {[%clk 0:00:44]}  Kd6 {[%clk 0:00:08]} 40. Rd1+ {[%clk 0:00:44]}  Ke6 {[%clk 0:00:09]} 41. Qf2 {[%clk 0:00:16]}  Qxf2+ {[%clk 0:00:08]} 42. Rxf2 {[%clk 0:00:17]}  Nxc6 {[%clk 0:00:08]} 43. Bc4+ {[%clk 0:00:16]} 1-0


[Site "https://www.chess.com"]

[Event "Titled Tuesday Blitz April 11 Late 2023"]
[White "Paravyan, David"]
[Black "Poliakova, Varvara"]
[WhiteFideId "4194985"]
[BlackFideId "13518313"]
[WhiteElo "2563"]
[BlackElo "2075"]
[Result "1-0"]
[Round "02"]
[TimeControl "180+2"]
[Date "2023.04.11"]
[WhiteClock "0:00:22"]
[BlackClock "0:00:19"]

1. d4 {[%clk 0:03:00]}  f5 {[%clk 0:02:59]} 2. Nf3 {[%clk 0:03:00]}  Nf6 {[%clk 0:02:58]} 3. e3 {[%clk 0:03:00]}  d6 {[%clk 0:02:57]} 4. Bd3 {[%clk 0:02:59]}  g6 {[%clk 0:02:57]} 5. O-O {[%clk 0:02:59]}  Bg7 {[%clk 0:02:58]} 6. Nc3 {[%clk 0:02:59]}  Nc6 {[%clk 0:02:56]} 7. e4 {[%clk 0:02:57]}  fxe4 {[%clk 0:02:50]} 8. Nxe4 {[%clk 0:02:58]}  O-O {[%clk 0:02:46]} 9. h3 {[%clk 0:02:57]}  Nh5 {[%clk 0:02:42]} 10. c3 {[%clk 0:02:49]}  e5 {[%clk 0:02:37]} 11. Bg5 {[%clk 0:02:49]}  Qe8 {[%clk 0:02:30]} 12. Bc4+ {[%clk 0:01:57]}  Kh8 {[%clk 0:02:25]} 13. Re1 {[%clk 0:01:58]}  Nf4 {[%clk 0:02:17]} 14. Ng3 {[%clk 0:01:43]}  h6 {[%clk 0:02:11]} 15. Bxf4 {[%clk 0:01:43]}  Rxf4 {[%clk 0:02:12]} 16. Bb5 {[%clk 0:01:33]}  Qf8 {[%clk 0:02:02]} 17. Bxc6 {[%clk 0:01:30]}  bxc6 {[%clk 0:02:03]} 18. dxe5 {[%clk 0:01:31]}  Bxh3 {[%clk 0:02:03]} 19. exd6 {[%clk 0:01:27]}  cxd6 {[%clk 0:01:54]} 20. Re4 {[%clk 0:01:22]}  Bg4 {[%clk 0:01:52]} 21. Rxf4 {[%clk 0:01:20]}  Qxf4 {[%clk 0:01:52]} 22. Qd2 {[%clk 0:01:19]}  Rf8 {[%clk 0:01:50]} 23. Qxf4 {[%clk 0:01:16]}  Rxf4 {[%clk 0:01:51]} 24. Re1 {[%clk 0:00:55]}  Bxf3 {[%clk 0:01:41]} 25. gxf3 {[%clk 0:00:56]}  Rxf3 {[%clk 0:01:35]} 26. Re6 {[%clk 0:00:48]}  Rf6 {[%clk 0:01:32]} 27. Re7 {[%clk 0:00:45]}  d5 {[%clk 0:01:24]} 28. Rxa7 {[%clk 0:00:43]}  Rd6 {[%clk 0:01:25]} 29. Ne2 {[%clk 0:00:39]}  c5 {[%clk 0:01:23]} 30. Nf4 {[%clk 0:00:34]}  d4 {[%clk 0:01:17]} 31. cxd4 {[%clk 0:00:33]}  cxd4 {[%clk 0:01:18]} 32. Nd3 {[%clk 0:00:32]}  Rc6 {[%clk 0:01:16]} 33. a4 {[%clk 0:00:31]}  Rc2 {[%clk 0:01:16]} 34. Rb7 {[%clk 0:00:26]}  Rd2 {[%clk 0:01:16]} 35. Rb3 {[%clk 0:00:25]}  Rd1+ {[%clk 0:01:14]} 36. Kg2 {[%clk 0:00:25]}  Ra1 {[%clk 0:01:15]} 37. Ra3 {[%clk 0:00:25]}  Rxa3 {[%clk 0:00:42]} 38. bxa3 {[%clk 0:00:26]}  Bf8 {[%clk 0:00:37]} 39. a5 {[%clk 0:00:26]}  Bd6 {[%clk 0:00:35]} 40. a6 {[%clk 0:00:27]}  Bb8 {[%clk 0:00:35]} 41. Nb4 {[%clk 0:00:28]}  Ba7 {[%clk 0:00:23]} 42. Kf1 {[%clk 0:00:19]}  h5 {[%clk 0:00:22]} 43. Nc6 {[%clk 0:00:19]}  Bc5 {[%clk 0:00:18]} 44. a7 {[%clk 0:00:20]}  Bxa7 {[%clk 0:00:19]} 45. Nxa7 {[%clk 0:00:21]}  h4 {[%clk 0:00:19]} 46. Nb5 {[%clk 0:00:21]}  d3 {[%clk 0:00:19]} 47. a4 {[%clk 0:00:22]} 1-0


[Site "https://www.chess.com"]

[Event "Titled Tuesday Blitz April 11 Late 2023"]
[White "Sai Krishna G V"]
[Black "Caruana, Fabiano"]
[WhiteFideId "5028280"]
[BlackFideId "2020009"]
[WhiteElo "2359"]
[BlackElo "2837"]
[Result "0-1"]
[Round "02"]
[TimeControl "180+2"]
[Date "2023.04.11"]
[WhiteClock "0:00:45"]
[BlackClock "0:01:45"]

1. e4 {[%clk 0:03:00]}  e5 {[%clk 0:02:59]} 2. Nf3 {[%clk 0:03:01]}  Nc6 {[%clk 0:03:00]} 3. Bb5 {[%clk 0:03:01]}  a6 {[%clk 0:03:00]} 4. Ba4 {[%clk 0:03:02]}  Nf6 {[%clk 0:03:00]} 5. O-O {[%clk 0:03:02]}  b5 {[%clk 0:03:01]} 6. Bb3 {[%clk 0:03:02]}  Bc5 {[%clk 0:03:01]} 7. a4 {[%clk 0:02:57]}  Rb8 {[%clk 0:03:01]} 8. axb5 {[%clk 0:02:57]}  axb5 {[%clk 0:03:02]} 9. c3 {[%clk 0:02:57]}  d6 {[%clk 0:03:02]} 10. d4 {[%clk 0:02:57]}  Bb6 {[%clk 0:03:03]} 11. Bg5 {[%clk 0:02:56]}  h6 {[%clk 0:03:02]} 12. Bh4 {[%clk 0:02:54]}  g5 {[%clk 0:03:01]} 13. Bg3 {[%clk 0:02:54]}  O-O {[%clk 0:03:01]} 14. Re1 {[%clk 0:02:52]}  Bg4 {[%clk 0:03:00]} 15. Bd5 {[%clk 0:02:27]}  Nxd5 {[%clk 0:02:23]} 16. exd5 {[%clk 0:02:28]}  Ne7 {[%clk 0:02:20]} 17. h3 {[%clk 0:02:20]}  Bxf3 {[%clk 0:02:17]} 18. Qxf3 {[%clk 0:02:21]}  exd4 {[%clk 0:02:17]} 19. Nd2 {[%clk 0:01:56]}  Ng6 {[%clk 0:02:17]} 20. Qh5 {[%clk 0:01:45]}  Kg7 {[%clk 0:02:15]} 21. Re4 {[%clk 0:01:26]}  dxc3 {[%clk 0:02:11]} 22. bxc3 {[%clk 0:01:27]}  Qf6 {[%clk 0:02:06]} 23. Rae1 {[%clk 0:01:24]}  Qxc3 {[%clk 0:02:04]} 24. Nf1 {[%clk 0:01:21]}  b4 {[%clk 0:01:56]} 25. h4 {[%clk 0:01:08]}  b3 {[%clk 0:01:53]} 26. hxg5 {[%clk 0:00:54]}  hxg5 {[%clk 0:01:54]} 27. Qxg5 {[%clk 0:00:55]}  b2 {[%clk 0:01:52]} 28. Nh2 {[%clk 0:00:49]}  b1=Q {[%clk 0:01:46]} 29. Ng4 {[%clk 0:00:45]}  Qbxe1+ {[%clk 0:01:45]} 0-1


[Site "https://www.chess.com"]

[Event "Titled Tuesday Blitz April 11 Late 2023"]
[White "Seo, Jung Min"]
[Black "Sadhwani, Raunak"]
[WhiteFideId "1734687"]
[BlackFideId "35093487"]
[WhiteElo "2468"]
[BlackElo "2631"]
[Result "1-0"]
[Round "02"]
[TimeControl "180+2"]
[Date "2023.04.11"]
[WhiteClock "0:00:06"]
[BlackClock "0:00:01"]

1. Nf3 {[%clk 0:03:00]}  g6 {[%clk 0:02:59]} 2. g3 {[%clk 0:02:59]}  Bg7 {[%clk 0:03:00]} 3. Bg2 {[%clk 0:03:00]}  Nf6 {[%clk 0:03:00]} 4. O-O {[%clk 0:03:00]}  O-O {[%clk 0:03:00]} 5. d4 {[%clk 0:02:59]}  d6 {[%clk 0:02:59]} 6. Re1 {[%clk 0:02:59]}  Bf5 {[%clk 0:02:54]} 7. Nc3 {[%clk 0:02:58]}  Ne4 {[%clk 0:02:54]} 8. Nxe4 {[%clk 0:02:57]}  Bxe4 {[%clk 0:02:55]} 9. c3 {[%clk 0:02:57]}  Nd7 {[%clk 0:02:54]} 10. Bf1 {[%clk 0:02:52]}  c5 {[%clk 0:02:45]} 11. dxc5 {[%clk 0:02:46]}  Nxc5 {[%clk 0:02:45]} 12. Nd4 {[%clk 0:02:46]}  Qb6 {[%clk 0:02:43]} 13. Nb3 {[%clk 0:02:45]}  Na4 {[%clk 0:02:38]} 14. Be3 {[%clk 0:02:33]}  Qc7 {[%clk 0:02:28]} 15. Qd2 {[%clk 0:02:32]}  a6 {[%clk 0:02:21]} 16. Rac1 {[%clk 0:02:31]}  b5 {[%clk 0:02:21]} 17. Nd4 {[%clk 0:02:29]}  e5 {[%clk 0:02:18]} 18. Nf3 {[%clk 0:02:26]}  Rac8 {[%clk 0:02:14]} 19. Bh3 {[%clk 0:02:24]}  Rcd8 {[%clk 0:02:09]} 20. b3 {[%clk 0:02:21]}  Nb6 {[%clk 0:01:58]} 21. Bh6 {[%clk 0:02:21]}  Bb7 {[%clk 0:01:47]} 22. Bxg7 {[%clk 0:02:21]}  Kxg7 {[%clk 0:01:48]} 23. Bg2 {[%clk 0:02:10]}  d5 {[%clk 0:01:43]} 24. e3 {[%clk 0:02:06]}  Rfe8 {[%clk 0:01:42]} 25. Qb2 {[%clk 0:02:05]}  f6 {[%clk 0:01:40]} 26. Red1 {[%clk 0:02:04]}  Rc8 {[%clk 0:01:37]} 27. Ne1 {[%clk 0:02:04]}  Red8 {[%clk 0:01:37]} 28. Nd3 {[%clk 0:02:03]}  Qe7 {[%clk 0:01:31]} 29. f4 {[%clk 0:02:00]}  e4 {[%clk 0:01:19]} 30. Ne1 {[%clk 0:01:58]}  Qc5 {[%clk 0:01:13]} 31. Kf2 {[%clk 0:01:49]}  h5 {[%clk 0:01:05]} 32. Qe2 {[%clk 0:01:36]}  Rc7 {[%clk 0:00:54]} 33. Nc2 {[%clk 0:01:32]}  Bc8 {[%clk 0:00:50]} 34. Nd4 {[%clk 0:01:24]}  Bg4 {[%clk 0:00:42]} 35. Qd2 {[%clk 0:01:22]}  Kf7 {[%clk 0:00:39]} 36. Re1 {[%clk 0:01:21]}  Rdc8 {[%clk 0:00:40]} 37. h3 {[%clk 0:01:20]}  Bd7 {[%clk 0:00:40]} 38. Qb2 {[%clk 0:01:18]}  a5 {[%clk 0:00:35]} 39. Rc2 {[%clk 0:01:15]}  g5 {[%clk 0:00:26]} 40. fxg5 {[%clk 0:01:14]}  fxg5 {[%clk 0:00:27]} 41. Kg1 {[%clk 0:01:14]}  Kg6 {[%clk 0:00:27]} 42. Rf1 {[%clk 0:01:12]}  Rf8 {[%clk 0:00:25]} 43. Rxf8 {[%clk 0:01:11]}  Qxf8 {[%clk 0:00:26]} 44. Rf2 {[%clk 0:00:53]}  Qd6 {[%clk 0:00:25]} 45. Ne2 {[%clk 0:00:33]}  Rc8 {[%clk 0:00:20]} 46. Qd2 {[%clk 0:00:33]}  Rf8 {[%clk 0:00:20]} 47. Rxf8 {[%clk 0:00:33]}  Qxf8 {[%clk 0:00:21]} 48. Qd4 {[%clk 0:00:33]}  Qf6 {[%clk 0:00:20]} 49. Qc5 {[%clk 0:00:22]}  Nc8 {[%clk 0:00:20]} 50. Nd4 {[%clk 0:00:21]}  Qd6 {[%clk 0:00:19]} 51. Qxd6+ {[%clk 0:00:19]}  Nxd6 {[%clk 0:00:20]} 52. a3 {[%clk 0:00:16]}  Kf6 {[%clk 0:00:17]} 53. Bf1 {[%clk 0:00:16]}  Ke7 {[%clk 0:00:12]} 54. Kf2 {[%clk 0:00:15]}  Kd8 {[%clk 0:00:13]} 55. h4 {[%clk 0:00:15]}  g4 {[%clk 0:00:09]} 56. b4 {[%clk 0:00:13]}  Kc7 {[%clk 0:00:09]} 57. Ke1 {[%clk 0:00:12]}  Kb6 {[%clk 0:00:09]} 58. Kd2 {[%clk 0:00:13]}  Ne8 {[%clk 0:00:08]} 59. Be2 {[%clk 0:00:13]}  Nc7 {[%clk 0:00:08]} 60. Nb3 {[%clk 0:00:12]}  Ne8 {[%clk 0:00:07]} 61. bxa5+ {[%clk 0:00:05]}  Ka7 {[%clk 0:00:07]} 62. Nd4 {[%clk 0:00:05]}  Nd6 {[%clk 0:00:06]} 63. Kc2 {[%clk 0:00:05]}  Ka6 {[%clk 0:00:06]} 64. a4 {[%clk 0:00:05]}  Kxa5 {[%clk 0:00:06]} 65. axb5 {[%clk 0:00:05]}  Bxb5 {[%clk 0:00:03]} 66. Bxb5 {[%clk 0:00:05]}  Nxb5 {[%clk 0:00:04]} 67. Nf5 {[%clk 0:00:05]}  Na3+ {[%clk 0:00:03]} 68. Kd2 {[%clk 0:00:05]}  Nc4+ {[%clk 0:00:04]} 69. Ke2 {[%clk 0:00:05]}  Ka4 {[%clk 0:00:03]} 70. Ng7 {[%clk 0:00:06]}  Kb3 {[%clk 0:00:04]} 71. Nxh5 {[%clk 0:00:05]}  Kxc3 {[%clk 0:00:04]} 72. Nf4 {[%clk 0:00:05]}  Nd6 {[%clk 0:00:04]} 73. Nxd5+ {[%clk 0:00:05]}  Kc4 {[%clk 0:00:05]} 74. Nf6 {[%clk 0:00:06]}  Kc5 {[%clk 0:00:05]} 75. Nxg4 {[%clk 0:00:06]}  Kd5 {[%clk 0:00:06]} 76. Nf2 {[%clk 0:00:06]}  Ke5 {[%clk 0:00:07]} 77. g4 {[%clk 0:00:06]}  Nc4 {[%clk 0:00:06]} 78. g5 {[%clk 0:00:06]}  Kf5 {[%clk 0:00:07]} 79. Nxe4 {[%clk 0:00:06]}  Kxe4 {[%clk 0:00:02]} 80. g6 {[%clk 0:00:06]}  Nxe3 {[%clk 0:00:01]} 81. g7 {[%clk 0:00:06]} 1-0


[Site "https://www.chess.com"]

[Event "Titled Tuesday Blitz April 11 Late 2023"]
[White "Mamedov, Edgar"]
[Black "Bortnyk, Mykola"]
[WhiteFideId "13739980"]
[BlackFideId "14120836"]
[WhiteElo "2330"]
[BlackElo "2582"]
[Result "0-1"]
[Round "02"]
[TimeControl "180+2"]
[Date "2023.04.11"]
[WhiteClock "0:00:30"]
[BlackClock "0:01:35"]

1. d4 {[%clk 0:03:00]}  g6 {[%clk 0:02:59]} 2. Nf3 {[%clk 0:02:59]}  Bg7 {[%clk 0:03:00]} 3. e4 {[%clk 0:02:59]}  c6 {[%clk 0:03:00]} 4. c3 {[%clk 0:02:59]}  d5 {[%clk 0:03:00]} 5. Bd3 {[%clk 0:02:58]}  dxe4 {[%clk 0:02:59]} 6. Bxe4 {[%clk 0:02:58]}  Nf6 {[%clk 0:03:00]} 7. Bd3 {[%clk 0:02:58]}  O-O {[%clk 0:03:00]} 8. O-O {[%clk 0:02:58]}  Nbd7 {[%clk 0:02:53]} 9. h3 {[%clk 0:02:57]}  Re8 {[%clk 0:02:51]} 10. Bf4 {[%clk 0:02:57]}  Qb6 {[%clk 0:02:49]} 11. Qb3 {[%clk 0:02:55]}  Nd5 {[%clk 0:02:48]} 12. Bh2 {[%clk 0:02:52]}  e5 {[%clk 0:02:46]} 13. Qxb6 {[%clk 0:02:49]}  axb6 {[%clk 0:02:47]} 14. dxe5 {[%clk 0:02:49]}  Nxe5 {[%clk 0:02:46]} 15. Nxe5 {[%clk 0:02:49]}  Bxe5 {[%clk 0:02:46]} 16. Bxe5 {[%clk 0:02:49]}  Rxe5 {[%clk 0:02:46]} 17. Nd2 {[%clk 0:02:49]}  Nf4 {[%clk 0:02:42]} 18. Bc4 {[%clk 0:02:49]}  Rg5 {[%clk 0:02:37]} 19. g3 {[%clk 0:02:41]}  Bxh3 {[%clk 0:02:32]} 20. Rfe1 {[%clk 0:02:36]}  Be6 {[%clk 0:02:24]} 21. Ne4 {[%clk 0:02:32]}  Nh3+ {[%clk 0:02:22]} 22. Kg2 {[%clk 0:02:28]}  Bxc4 {[%clk 0:02:22]} 23. Kxh3 {[%clk 0:02:28]}  Rh5+ {[%clk 0:02:20]} 24. Kg2 {[%clk 0:02:28]}  Bd5 {[%clk 0:02:18]} 25. f3 {[%clk 0:02:27]}  Bxe4 {[%clk 0:02:17]} 26. Rxe4 {[%clk 0:02:27]}  Rd5 {[%clk 0:02:16]} 27. Re2 {[%clk 0:02:26]}  Kg7 {[%clk 0:02:15]} 28. c4 {[%clk 0:02:24]}  Rd3 {[%clk 0:02:13]} 29. a3 {[%clk 0:02:18]}  Rad8 {[%clk 0:02:07]} 30. Rc1 {[%clk 0:02:15]}  h5 {[%clk 0:02:07]} 31. Rcc2 {[%clk 0:02:12]}  R8d7 {[%clk 0:02:05]} 32. Kf2 {[%clk 0:02:09]}  g5 {[%clk 0:02:03]} 33. Re3 {[%clk 0:02:05]}  Rd2+ {[%clk 0:02:02]} 34. Re2 {[%clk 0:02:05]}  Rxc2 {[%clk 0:02:02]} 35. Rxc2 {[%clk 0:02:05]}  Rd3 {[%clk 0:02:02]} 36. Re2 {[%clk 0:01:43]}  Rb3 {[%clk 0:02:01]} 37. Kg2 {[%clk 0:01:39]}  Kg6 {[%clk 0:01:55]} 38. Rd2 {[%clk 0:01:37]}  Kf5 {[%clk 0:01:52]} 39. Re2 {[%clk 0:01:33]}  f6 {[%clk 0:01:52]} 40. Kf2 {[%clk 0:01:31]}  h4 {[%clk 0:01:46]} 41. gxh4 {[%clk 0:01:31]}  gxh4 {[%clk 0:01:47]} 42. Kg2 {[%clk 0:01:31]}  Kf4 {[%clk 0:01:47]} 43. Re4+ {[%clk 0:01:31]}  Kg5 {[%clk 0:01:48]} 44. Re2 {[%clk 0:01:30]}  f5 {[%clk 0:01:48]} 45. Rd2 {[%clk 0:01:13]}  c5 {[%clk 0:01:45]} 46. Rd7 {[%clk 0:00:57]}  Rxb2+ {[%clk 0:01:43]} 47. Kh3 {[%clk 0:00:57]}  Rb3 {[%clk 0:01:43]} 48. Rg7+ {[%clk 0:00:57]}  Kf4 {[%clk 0:01:43]} 49. Rxb7 {[%clk 0:00:56]}  Kxf3 {[%clk 0:01:41]} 50. a4 {[%clk 0:00:55]}  Rb4 {[%clk 0:01:37]} 51. Kxh4 {[%clk 0:00:50]}  Rxc4+ {[%clk 0:01:38]} 52. Kg5 {[%clk 0:00:47]}  f4 {[%clk 0:01:38]} 53. Rxb6 {[%clk 0:00:47]}  Rxa4 {[%clk 0:01:36]} 54. Rb3+ {[%clk 0:00:44]}  Kg2 {[%clk 0:01:37]} 55. Rb2+ {[%clk 0:00:43]}  Kg3 {[%clk 0:01:37]} 56. Rc2 {[%clk 0:00:31]}  f3 {[%clk 0:01:35]} 57. Rc3 {[%clk 0:00:30]}  Kg2 {[%clk 0:01:35]} 0-1


[Site "https://www.chess.com"]